fUST/lending_fUST_20251113
["ID","MTS","AMOUNT","RATE_DAILY","PERIOD"]
[393857805,1763044253419,-500.0,0.00044109,120]
[393857806,1763044253428,-819.95,0.00044109,120]
[393857807,1763044253438,-500.0,0.00044109,120]
[393857808,1763044253447,-500.98,0.00044109,120]
[393857809,1763044253457,-1334.42,0.00044109,120]
[393857810,1763044253467,-1000.0,0.00044109,2]
[393857811,1763044253477,-500.0,0.00044109,120]
[393857812,1763044253487,-500.0,0.00044109,120]
[393857813,1763044253496,-500.0,0.00044109,120]
[393857814,1763044253505,-500.0,0.00044109,120]
[393857815,1763044253515,-500.0,0.00044109,120]
[393857816,1763044253526,-500.0,0.00044109,120]
[393857817,1763044253536,-500.0,0.00044109,120]
[393857818,1763044253545,-500.0,0.00044109,120]
[393857819,1763044253555,-500.0,0.00044109,120]
[393857820,1763044253565,-500.0,0.00044109,120]
[393857821,1763044253575,-544.13,0.00044109,120]
[393857822,1763044253585,-698.26,0.00044109,120]
[393857823,1763044253595,-500.0,0.00044109,120]
[393857824,1763044253605,-514.24,0.00044109,120]
[393857825,1763044253614,-500.0,0.00044109,120]
[393857826,1763044253624,-500.0,0.00044109,120]
[393857827,1763044253634,-555.27,0.00044109,120]
[393857828,1763044253643,-500.0,0.00044109,120]
[393857829,1763044253652,-726.8,0.00044109,120]
[393857830,1763044253662,-200.0,0.00044109,120]
[393857831,1763044253675,-762.24,0.00044109,120]
[393857832,1763044253685,-500.0,0.00044109,120]
[393857833,1763044253695,-500.0,0.00044109,120]
[393857834,1763044253704,-1000.0,0.00044109,120]
[393857835,1763044253714,-500.0,0.00044109,120]
[393857836,1763044253723,-500.0,0.00044109,120]
[393857837,1763044253733,-500.0,0.00044109,120]
[393857838,1763044253743,-551.35,0.00044109,120]
[393857839,1763044253753,-500.0,0.00044109,120]
[393857840,1763044253763,-500.0,0.00044109,120]
[393857841,1763044253772,-500.0,0.00044109,120]
[393857842,1763044253782,-500.0,0.00044109,120]
[393857843,1763044253791,-500.0,0.00044109,120]
[393857844,1763044253802,-500.0,0.00044109,120]
[393857845,1763044253811,-500.0,0.00044109,120]
[393857846,1763044253821,-500.0,0.00044109,120]
[393857847,1763044253831,-500.0,0.00044109,120]
[393857848,1763044253841,-500.0,0.00044109,120]
[393857849,1763044253852,-599.22,0.00044109,120]
[393857850,1763044253861,-500.0,0.00044109,120]
[393857851,1763044253871,-500.0,0.00044109,120]
[393857852,1763044253885,-500.0,0.00044109,120]
[393857853,1763044253894,-500.0,0.00044109,120]
[393857854,1763044253904,-500.0,0.00044109,120]
[393857855,1763044253914,-619.02473906,0.00044109,120]
[393857856,1763044253925,-500.0,0.00044109,120]
[393857857,1763044253935,-500.0,0.00044109,120]
[393857858,1763044253944,-500.0,0.00044109,120]
[393857859,1763044253955,-500.0,0.00044109,120]
[393857860,1763044253965,-500.0,0.00044109,120]
[393857861,1763044253974,-500.0,0.00044109,120]
[393857862,1763044253983,-500.0,0.00044109,120]
[393857863,1763044253991,-916.97,0.00044109,120]
[393857864,1763044254001,-995.83,0.00044109,120]
[393857865,1763044254010,-500.0,0.00044109,120]
[393857866,1763044254020,-500.0,0.00044109,120]
[393857867,1763044254030,-500.0,0.00044109,120]
[393857868,1763044254039,-702.71,0.00044109,120]
[393857869,1763044254049,-500.0,0.00044109,120]
[393857870,1763044254059,-500.0,0.00044109,120]
[393857871,1763044254068,-675.91,0.00044109,120]
[393857872,1763044254078,-500.0,0.00044109,120]
[393857873,1763044254088,-500.0,0.00044109,120]
[393857874,1763044254097,-517.81,0.00044109,120]
[393857875,1763044254107,-500.0,0.00044109,120]
[393857876,1763044254116,-500.0,0.00044109,120]
[393857877,1763044254126,-500.0,0.00044109,120]
[393857878,1763044254135,-500.0,0.00044109,120]
[393857879,1763044254145,-933.95,0.00044109,120]
[393857880,1763044254155,-500.0,0.00044109,120]
[393857881,1763044254164,-500.0,0.00044109,120]
[393857882,1763044254173,-669.69,0.00044109,120]
[393857883,1763044254183,-724.45,0.00044109,120]
[393857884,1763044254193,-607.41494599,0.00044109,120]
[393857885,1763044254202,-500.0,0.00044109,120]
[393857886,1763044254212,-12852.52,0.00044109,3]
[393857887,1763044254222,-500.0,0.00044109,120]
[393857888,1763044254232,-500.0,0.00044109,120]
[393857889,1763044254242,-500.0,0.00044109,120]
[393857890,1763044254252,-500.0,0.00044109,120]
[393857891,1763044254261,-500.0,0.00044109,120]
[393857892,1763044254271,-500.0,0.00044109,120]
[393857893,1763044254281,-680.67,0.00044109,120]
[393857894,1763044254291,-596.81,0.00044109,120]
[393857895,1763044254301,-559.4,0.00044109,120]
[393857896,1763044254311,-500.0,0.00044109,120]
[393857897,1763044254321,-500.0,0.00044109,120]
[393857898,1763044254331,-500.0,0.00044109,120]
[393857899,1763044254341,-500.0,0.00044109,120]
[393857900,1763044254351,-500.0,0.00044109,120]
[393857901,1763044254362,-530.59,0.00044109,120]
[393857902,1763044254371,-500.0,0.00044109,120]
[393857903,1763044254381,-1033.25,0.00044109,120]
[393857904,1763044254390,-623.64,0.00044109,30]
[393857905,1763044254400,-500.0,0.00044109,120]
[393857906,1763044254409,-1000.0,0.00044109,2]
[393857907,1763044254419,-1105.94,0.00044109,120]
[393857908,1763044254429,-500.0,0.00044109,120]
[393857909,1763044254439,-788.87,0.00044109,120]
[393857910,1763044254449,-500.0,0.00044109,120]
[393857911,1763044254459,-1061.39,0.00044109,120]
[393857912,1763044254469,-500.0,0.00044109,120]
[393857913,1763044254479,-500.0,0.00044109,120]
[393857914,1763044254488,-1219.28,0.00044109,7]
[393857915,1763044254498,-500.0,0.00044109,120]
[393857916,1763044254507,-500.0,0.00044109,120]
[393857917,1763044254517,-500.0,0.00044109,120]
[393857918,1763044254527,-500.0,0.00044109,120]
[393857919,1763044254538,-500.0,0.00044109,120]
[393857920,1763044254547,-1209.15,0.00044109,120]
[393857921,1763044254557,-500.0,0.00044109,120]
[393857922,1763044254566,-500.0,0.00044109,120]
[393857923,1763044254575,-500.0,0.00044109,120]
[393857924,1763044254585,-864.18,0.00044109,120]
[393857925,1763044254594,-717.71,0.00044109,120]
[393857926,1763044254604,-500.0,0.00044109,3]
[393857927,1763044254614,-377.61078854,0.00044109,120]
[393857928,1763044254623,-2970.54,0.00044109,2]
[393857929,1763044254632,-500.0,0.00044109,120]
[393857930,1763044254642,-500.0,0.00044109,120]
[393857931,1763044254651,-500.0,0.00044109,21]
[393857932,1763044254661,-500.0,0.00044109,120]
[393857933,1763044254672,-500.0,0.00044109,120]
[393857934,1763044254682,-500.0,0.00044109,120]
[393857935,1763044254691,-911.33,0.00044109,120]
[393857936,1763044254701,-1040.22,0.00044109,120]
[393857937,1763044254711,-863.81,0.00044109,120]
[393857938,1763044254720,-500.0,0.00044109,120]
[393857939,1763044254729,-1200.21,0.00044109,120]
[393857940,1763044254887,-500.0,0.00044109,120]
[393857941,1763044254898,-1258.69,0.00044109,120]
[393857942,1763044254908,-500.0,0.00044109,120]
[393857943,1763044254919,-500.0,0.00044109,120]
[393857944,1763044254931,-689.67,0.00044109,120]
[393857945,1763044254940,-500.0,0.00044109,120]
[393857946,1763044254950,-962.83,0.00044109,120]
[393857947,1763044254963,-1192.51,0.00044109,120]
[393857948,1763044254972,-500.0,0.00044109,120]
[393857949,1763044254981,-211.56291472,0.00044109,120]
[393857950,1763044254990,-500.0,0.00044109,120]
[393857951,1763044254999,-754.53,0.00044109,120]
[393857952,1763044255008,-532.98223061,0.00044109,120]
[393857953,1763044255018,-500.0,0.00044109,120]
[393857954,1763044255027,-1100.13,0.00044109,120]
[393857955,1763044255037,-500.0,0.00044109,120]
[393857956,1763044255047,-500.0,0.00044109,120]
[393857957,1763044255056,-500.0,0.00044109,120]
[393857958,1763044255067,-883.0,0.00044109,120]
[393857959,1763044255077,-500.0,0.00044109,120]
[393857960,1763044255087,-500.0,0.00044109,120]
[393857961,1763044255096,-500.0,0.00044109,120]
[393857962,1763044255106,-567.52,0.00044109,120]
[393857963,1763044255114,-500.0,0.00044109,120]
[393857964,1763044255124,-500.0,0.00044109,120]
[393857965,1763044255134,-500.0,0.00044109,120]
[393857966,1763044255143,-500.0,0.00044109,120]
[393857967,1763044255153,-500.0,0.00044109,120]
[393857968,1763044255163,-1391.86,0.00044109,120]
[393857969,1763044255176,-500.0,0.00044109,120]
[393857970,1763044255186,-846.37,0.00044109,120]
[393857971,1763044255196,-500.0,0.00044109,120]
[393857972,1763044255206,-500.0,0.00044109,120]
[393857973,1763044255215,-500.0,0.00044109,120]
[393857974,1763044255225,-713.42,0.00044109,2]
[393857975,1763044255235,-500.0,0.00044109,120]
[393857976,1763044255245,-500.0,0.00044109,120]
[393857977,1763044255255,-500.0,0.00044109,120]
[393857978,1763044255265,-530.62,0.00044109,120]
[393857979,1763044255275,-5268.83,0.00044109,120]
[393857980,1763044255285,-515.23765565,0.00044109,120]
[393857981,1763044255294,-1042.71,0.00044109,120]
[393857982,1763044255304,-500.0,0.00044109,120]
[393857983,1763044255314,-547.55,0.00044109,120]
[393857984,1763044255324,-500.0,0.00044109,120]
[393857985,1763044255333,-500.0,0.00044109,120]
[393857986,1763044255343,-604.91,0.00044109,120]
[393857987,1763044255352,-500.0,0.00044109,120]
[393857988,1763044255362,-500.0,0.00044109,120]
[393857989,1763044255372,-619.89,0.00044109,120]
[393857990,1763044255382,-500.0,0.00044109,120]
[393857991,1763044255392,-559.76,0.00044109,120]
[393857992,1763044255401,-500.0,0.00044109,120]
[393857993,1763044255411,-500.0,0.00044109,120]
[393857994,1763044255422,-500.0,0.00044109,120]
[393857995,1763044255431,-588.0,0.00044109,120]
[393857996,1763044255440,-500.0,0.00044109,120]
[393857997,1763044255450,-500.0,0.00044109,120]
[393857998,1763044255460,-541.9,0.00044109,120]
[393857999,1763044255470,-500.0,0.00044109,120]
[393858000,1763044255479,-1174.73,0.00044109,120]
[393858001,1763044255490,-500.0,0.00044109,120]
[393858002,1763044255499,-500.0,0.00044109,120]
[393858003,1763044255508,-500.0,0.00044109,120]
[393858004,1763044255518,-1215.88,0.00044109,120]
[393858005,1763044255527,-500.0,0.00044109,120]
[393858006,1763044255536,-2220.77,0.00044109,120]
[393858007,1763044255545,-500.0,0.00044109,120]
[393858008,1763044255555,-500.0,0.00044109,120]
[393858009,1763044255564,-500.0,0.00044109,120]
[393858010,1763044255574,-500.0,0.00044109,120]
[393858011,1763044255582,-500.0,0.00044109,120]
[393858012,1763044255591,-603.65,0.00044109,120]
[393858013,1763044255600,-1206.3,0.00044109,120]
[393858014,1763044255610,-960.0,0.00044109,120]
[393858015,1763044255619,-500.0,0.00044109,2]
[393858016,1763044255628,-500.0,0.00044109,120]
[393858017,1763044255638,-500.0,0.00044109,120]
[393858018,1763044255647,-500.0,0.00044109,120]
[393858019,1763044255657,-500.0,0.00044109,120]
[393858020,1763044255668,-639.36,0.00044109,120]
[393858021,1763044255677,-684.51,0.00044109,120]
[393858022,1763044255686,-500.0,0.00044109,120]
[393858023,1763044255695,-500.0,0.00044109,120]
[393858024,1763044255704,-501.61451828,0.00044173,4]
[393858025,1763044255713,-562.12238542,0.00044173,8]
[393858026,1763044255722,-500.0,0.00044173,10]
[393858027,1763044255731,-500.0,0.00044173,7]
[393858028,1763044255740,-502.13564581,0.00044173,7]
[393858029,1763044255750,-500.0,0.00044173,10]
[393858030,1763044255759,-500.0,0.00044173,10]
[393858031,1763044255769,-1623.64,0.000442,14]
[393858032,1763044255779,-194.0,0.0004427,7]
[393858033,1763044255788,-150.0,0.00044373,7]
[393858034,1763044255798,-500.0,0.00044383,120]
[393858035,1763044255807,-685.72,0.00044383,120]
[393858036,1763044255816,-500.0,0.00044383,2]
[393858037,1763044255825,-500.0,0.00044383,120]
[393858038,1763044255834,-500.0,0.00044383,120]
[393858039,1763044255844,-670.36,0.00044383,120]
[393858040,1763044255853,-500.0,0.00044383,120]
[393858041,1763044255862,-500.0,0.00044383,120]
[393858042,1763044255871,-500.0,0.00044383,120]
[393858043,1763044255883,-500.0,0.00044383,120]
[393858044,1763044255893,-500.0,0.00044383,120]
[393858045,1763044255903,-500.0,0.00044383,120]
[393858046,1763044255913,-500.0,0.00044383,120]
[393858047,1763044255926,-521.94584625,0.00044383,120]
[393858048,1763044255935,-500.0,0.00044383,120]
[393858049,1763044255945,-500.0,0.00044383,120]
[393858050,1763044255954,-356.36011577,0.00044383,120]
[393858051,1763044255968,-558.31,0.00044383,120]
[393858052,1763044255977,-500.0,0.00044383,120]
[393858053,1763044255987,-500.0,0.00044383,120]
[393858054,1763044255996,-500.0,0.00044383,120]
[393858055,1763044256005,-500.0,0.00044383,120]
[393858056,1763044256015,-623.14,0.00044383,2]
[393858057,1763044256024,-500.0,0.00044383,120]
[393858058,1763044256033,-651.34,0.00044383,120]
[393858059,1763044256042,-500.0,0.00044383,120]
[393858060,1763044256052,-500.0,0.00044383,120]
[393858061,1763044256062,-500.0,0.00044383,120]
[393858062,1763044256072,-500.0,0.00044383,120]
[393858063,1763044256081,-597.6,0.00044383,120]
[393858064,1763044256090,-763.24,0.00044383,120]
[393858065,1763044256100,-505.26,0.00044383,120]
[393858066,1763044256110,-500.0,0.00044383,120]
[393858067,1763044256120,-500.0,0.00044383,120]
[393858068,1763044256129,-500.0,0.00044383,2]
[393858069,1763044256139,-500.0,0.00044383,120]
[393858070,1763044256148,-675.75,0.00044383,120]
[393858071,1763044256157,-500.0,0.00044383,120]
[393858072,1763044256168,-500.0,0.00044383,120]
[393858073,1763044256179,-500.0,0.00044383,120]
[393858074,1763044256189,-496.31893773,0.00044383,120]
[393858075,1763044256198,-500.0,0.00044383,120]
[393858076,1763044256208,-500.0,0.00044383,120]
[393858077,1763044256218,-1000.0,0.00044383,7]
[393858078,1763044256227,-500.0,0.00044383,120]
[393858079,1763044256237,-500.0,0.00044383,120]
[393858080,1763044256246,-500.0,0.00044383,120]
[393858081,1763044256256,-500.0,0.00044383,120]
[393858082,1763044256265,-519.04662772,0.00044383,120]
[393858083,1763044256274,-660.67,0.00044383,120]
[393858084,1763044256284,-500.0,0.00044383,120]
[393858085,1763044256294,-500.0,0.00044383,120]
[393858086,1763044256304,-500.0,0.00044383,120]
[393858087,1763044256314,-577.28,0.00044383,120]
[393858088,1763044256324,-500.0,0.00044383,120]
[393858089,1763044256334,-500.0,0.00044383,120]
[393858090,1763044256343,-500.0,0.00044383,120]
[393858091,1763044256353,-500.0,0.00044383,120]
[393858092,1763044256362,-838.81,0.00044383,120]
[393858093,1763044256372,-500.0,0.00044383,120]
[393858094,1763044256381,-505.20309345,0.00044383,120]
[393858095,1763044256391,-968.2,0.00044383,120]
[393858096,1763044256400,-548.32,0.00044383,120]
[393858097,1763044256411,-500.0,0.00044383,120]
[393858098,1763044256421,-679.18,0.00044383,120]
[393858099,1763044256431,-500.0,0.00044383,120]
[393858100,1763044256441,-500.0,0.00044383,120]
[393858101,1763044256451,-991.92,0.00044383,120]
[393858102,1763044256460,-500.0,0.00044383,2]
[393858103,1763044256470,-500.0,0.00044383,120]
[393858104,1763044256479,-735.07,0.00044383,120]
[393858105,1763044256488,-500.0,0.00044383,120]
[393858106,1763044256498,-500.0,0.00044383,120]
[393858107,1763044256507,-500.0,0.00044383,120]
[393858108,1763044256517,-500.0,0.00044383,120]
[393858109,1763044256527,-500.0,0.00044383,120]
[393858110,1763044256536,-500.0,0.00044383,120]
[393858111,1763044256547,-769.02,0.00044383,120]
[393858112,1763044256556,-265.22618037,0.00044383,120]
[393858113,1763044256566,-804.4,0.00044383,120]
[393858114,1763044256575,-732.72,0.00044383,120]
[393858115,1763044256585,-582.34,0.00044383,120]
[393858116,1763044256594,-518.23,0.00044383,120]
[393858117,1763044256603,-196.47169555,0.00044383,120]
[393858118,1763044256612,-500.0,0.00044383,120]
[393858119,1763044256622,-500.0,0.00044383,120]
[393858120,1763044256631,-500.0,0.00044383,120]
[393858121,1763044256640,-500.0,0.00044383,120]
[393858122,1763044256650,-500.0,0.00044383,120]
[393858123,1763044256659,-500.0,0.00044383,120]
[393858124,1763044256671,-500.0,0.00044383,120]
[393858125,1763044256680,-500.0,0.00044383,120]
[393858126,1763044256690,-500.0,0.00044383,120]
[393858127,1763044256699,-500.0,0.00044383,120]
[393858128,1763044256708,-500.0,0.00044383,120]
[393858129,1763044256717,-500.0,0.00044383,120]
[393858130,1763044256727,-500.0,0.00044383,120]
[393858131,1763044256737,-648.24,0.00044383,120]
[393858132,1763044256746,-229.71274388,0.00044383,120]
[393858133,1763044256755,-500.0,0.00044383,120]
[393858134,1763044256765,-500.0,0.00044383,120]
[393858135,1763044256774,-500.0,0.00044383,120]
[393858136,1763044256784,-923.34,0.00044383,120]
[393858137,1763044256793,-500.0,0.00044383,120]
[393858138,1763044256803,-1171.75,0.00044383,120]
[393858139,1763044256812,-500.0,0.00044383,120]
[393858140,1763044256822,-500.0,0.00044383,120]
[393858141,1763044256831,-530.78,0.00044383,120]
[393858142,1763044256840,-572.13,0.00044383,120]
[393858143,1763044256849,-500.0,0.00044383,120]
[393858144,1763044256858,-500.0,0.00044383,120]
[393858145,1763044256868,-1551.43,0.00044383,120]
[393858146,1763044256880,-2023.56,0.00044383,30]
[393858147,1763044256890,-500.0,0.00044383,120]
[393858148,1763044256900,-500.0,0.00044383,120]
[393858149,1763044256909,-1260.56,0.00044383,120]
[393858150,1763044256922,-276.83423325,0.00044383,120]
[393858151,1763044256932,-500.0,0.00044383,120]
[393858152,1763044256941,-859.54,0.00044383,120]
[393858153,1763044256952,-500.0,0.00044383,120]
[393858154,1763044256962,-912.03,0.00044383,120]
[393858155,1763044256972,-500.0,0.00044383,120]
[393858156,1763044256981,-500.0,0.00044383,120]
[393858157,1763044256990,-884.37,0.00044383,120]
[393858158,1763044256999,-500.0,0.00044383,120]
[393858159,1763044257008,-500.0,0.00044383,120]
[393858160,1763044257018,-500.0,0.00044383,120]
[393858161,1763044257027,-500.0,0.00044383,120]
[393858162,1763044257037,-582.64,0.00044383,120]
[393858163,1763044257046,-500.0,0.00044383,120]
[393858164,1763044257055,-500.0,0.00044383,120]
[393858165,1763044257065,-500.0,0.00044383,120]
[393858166,1763044257074,-500.0,0.00044383,120]
[393858167,1763044257084,-500.0,0.00044383,120]
[393858168,1763044257093,-500.0,0.00044383,120]
[393858169,1763044257102,-500.0,0.00044383,120]
[393858170,1763044257111,-819.95,0.00044383,120]
[393858171,1763044257120,-532.79064449,0.00044383,120]
[393858172,1763044257130,-500.98,0.00044383,120]
[393858173,1763044257139,-1334.42,0.00044383,120]
[393858174,1763044257149,-1000.0,0.00044383,2]
[393858175,1763044257158,-500.0,0.00044383,120]
[393858176,1763044257168,-500.0,0.00044383,120]
[393858177,1763044257178,-500.0,0.00044383,120]
[393858178,1763044257188,-500.0,0.00044383,120]
[393858179,1763044257197,-500.0,0.00044383,120]
[393858180,1763044257207,-500.0,0.00044383,120]
[393858181,1763044257217,-500.0,0.00044383,120]
[393858182,1763044257226,-500.0,0.00044383,120]
[393858183,1763044257236,-500.0,0.00044383,120]
[393858184,1763044257246,-500.0,0.00044383,120]
[393858185,1763044257256,-544.13,0.00044383,120]
[393858186,1763044257265,-698.26,0.00044383,120]
[393858187,1763044257275,-500.0,0.00044383,120]
[393858188,1763044257284,-514.24,0.00044383,120]
[393858189,1763044257294,-500.0,0.00044383,120]
[393858190,1763044257303,-500.0,0.00044383,120]
[393858191,1763044257312,-555.27,0.00044383,120]
[393858192,1763044257322,-500.0,0.00044383,120]
[393858193,1763044257331,-726.8,0.00044383,120]
[393858194,1763044257340,-200.0,0.00044383,120]
[393858195,1763044257350,-762.24,0.00044383,120]
[393858196,1763044257359,-500.0,0.00044383,120]
[393858197,1763044257369,-500.0,0.00044383,120]
[393858198,1763044257379,-1000.0,0.00044383,120]
[393858199,1763044257389,-500.0,0.00044383,120]
[393858200,1763044257398,-255.21471338,0.00044383,120]
[393858201,1763044257408,-500.0,0.00044383,120]
[393858202,1763044257418,-551.35,0.00044383,120]
[393858203,1763044257429,-500.0,0.00044383,120]
[393858204,1763044257438,-500.0,0.00044383,120]
[393858205,1763044257447,-500.0,0.00044383,120]
[393858206,1763044257457,-553.46055664,0.00044383,120]
[393858207,1763044257467,-500.0,0.00044383,120]
[393858208,1763044257477,-500.0,0.00044383,120]
[393858209,1763044257486,-500.0,0.00044383,120]
[393858210,1763044257495,-500.0,0.00044383,120]
[393858211,1763044257505,-500.0,0.00044383,120]
[393858212,1763044257515,-500.0,0.00044383,120]
[393858213,1763044257525,-599.22,0.00044383,120]
[393858214,1763044257534,-500.0,0.00044383,120]
[393858215,1763044257543,-500.0,0.00044383,120]
[393858216,1763044257553,-500.0,0.00044383,120]
[393858217,1763044257562,-500.0,0.00044383,120]
[393858218,1763044257571,-500.0,0.00044383,120]
[393858219,1763044257581,-500.0,0.00044383,120]
[393858220,1763044257591,-500.0,0.00044383,120]
[393858221,1763044257600,-500.0,0.00044383,120]
[393858222,1763044257609,-500.0,0.00044383,120]
[393858223,1763044257618,-198.15267728,0.00044383,120]
[393858224,1763044257628,-500.0,0.00044383,120]
[393858225,1763044257637,-500.0,0.00044383,120]
[393858226,1763044257646,-916.97,0.00044383,120]
[393858227,1763044257656,-995.83,0.00044383,120]
[393858228,1763044257665,-500.0,0.00044383,120]
[393858229,1763044257675,-500.0,0.00044383,120]
[393858230,1763044257685,-500.0,0.00044383,120]
[393858231,1763044257695,-702.71,0.00044383,120]
[393858232,1763044257705,-500.0,0.00044383,120]
[393858233,1763044257715,-500.0,0.00044383,120]
[393858234,1763044257724,-675.91,0.00044383,120]
[393858235,1763044257734,-500.0,0.00044383,120]
[393858236,1763044257744,-500.0,0.00044383,120]
[393858237,1763044257753,-517.81,0.00044383,120]
[393858238,1763044257763,-500.0,0.00044383,120]
[393858239,1763044257773,-423.56320041,0.00044383,120]
[393858240,1763044257783,-500.0,0.00044383,120]
[393858241,1763044257792,-500.0,0.00044383,120]
[393858242,1763044257802,-933.95,0.00044383,120]
[393858243,1763044257812,-500.0,0.00044383,120]
[393858244,1763044257823,-500.0,0.00044383,120]
[393858245,1763044257832,-669.69,0.00044383,120]
[393858246,1763044257841,-724.45,0.00044383,120]
[393858247,1763044257851,-500.0,0.00044383,120]
[393858248,1763044257861,-12852.52,0.00044383,3]
[393858249,1763044257871,-500.0,0.00044383,120]
[393858250,1763044257884,-500.0,0.00044383,120]
[393858251,1763044257895,-500.0,0.00044383,120]
[393858252,1763044257905,-500.0,0.00044383,120]
[393858253,1763044257916,-500.0,0.00044383,120]
[393858254,1763044257927,-500.0,0.00044383,120]
[393858255,1763044257938,-680.67,0.00044383,120]
[393858256,1763044257947,-596.81,0.00044383,120]
[393858257,1763044257959,-559.4,0.00044383,120]
[393858258,1763044257968,-500.0,0.00044383,120]
[393858259,1763044257978,-500.0,0.00044383,120]
[393858260,1763044257987,-500.0,0.00044383,120]
[393858261,1763044257996,-500.0,0.00044383,120]
[393858262,1763044258006,-500.0,0.00044383,120]
[393858263,1763044258015,-530.59,0.00044383,120]
[393858264,1763044258024,-557.83587969,0.00044383,120]
[393858265,1763044258034,-1033.25,0.00044383,120]
[393858266,1763044258043,-623.64,0.00044383,30]
[393858267,1763044258052,-500.0,0.00044383,120]
[393858268,1763044258062,-1000.0,0.00044383,2]
[393858269,1763044258071,-1105.94,0.00044383,120]
[393858270,1763044258082,-500.0,0.00044383,120]
[393858271,1763044258091,-788.87,0.00044383,120]
[393858272,1763044258101,-500.0,0.00044383,120]
[393858273,1763044258110,-1061.39,0.00044383,120]
[393858274,1763044258118,-500.0,0.00044383,120]
[393858275,1763044258127,-500.0,0.00044383,120]
[393858276,1763044258136,-1219.28,0.00044383,7]
[393858277,1763044258146,-631.76674996,0.00044383,120]
[393858278,1763044258155,-500.0,0.00044383,120]
[393858279,1763044258164,-500.0,0.00044383,120]
[393858280,1763044258314,-500.0,0.00044383,120]
[393858281,1763044258325,-500.0,0.00044383,120]
[393858282,1763044258335,-1209.15,0.00044383,120]
[393858283,1763044258345,-500.0,0.00044383,120]
[393858284,1763044258354,-500.0,0.00044383,120]
[393858285,1763044258364,-500.0,0.00044383,120]
[393858286,1763044258374,-864.18,0.00044383,120]
[393858287,1763044258384,-717.71,0.00044383,120]
[393858288,1763044258394,-500.0,0.00044383,3]
[393858289,1763044258403,-2970.54,0.00044383,2]
[393858290,1763044258413,-500.0,0.00044383,120]
[393858291,1763044258424,-500.0,0.00044383,120]
[393858292,1763044258434,-500.0,0.00044383,21]
[393858293,1763044258443,-500.0,0.00044383,120]
[393858294,1763044258452,-500.0,0.00044383,120]
[393858295,1763044258462,-500.0,0.00044383,120]
[393858296,1763044258471,-911.33,0.00044383,120]
[393858297,1763044258480,-1040.22,0.00044383,120]
[393858298,1763044258489,-863.81,0.00044383,120]
[393858299,1763044258499,-500.0,0.00044383,120]
[393858300,1763044258508,-1200.21,0.00044383,120]
[393858301,1763044258519,-500.0,0.00044383,120]
[393858302,1763044258528,-1258.69,0.00044383,120]
[393858303,1763044258538,-500.0,0.00044383,120]
[393858304,1763044258548,-500.0,0.00044383,120]